[Event "Titled Tuesday Blitz May 30 Late 2023"]
[White "Bok, Benjamin"]
[Black "Tejedor Fuente, Enrique"]
[WhiteFideId "1017063"]
[BlackFideId "2299100"]
[WhiteElo "2657"]
[BlackElo "2496"]
[Result "0-1"]
[Round "06"]
[TimeControl "180+2"]
[Date "2023.05.31"]
[WhiteClock "0:00:02"]
[BlackClock "0:00:06"]

1. d4 {[%clk 0:03:00]}  d5 {[%clk 0:02:59]} 2. c4 {[%clk 0:03:00]}  c6 {[%clk 0:02:59]} 3. Nf3 {[%clk 0:03:00]}  Nf6 {[%clk 0:02:59]} 4. cxd5 {[%clk 0:03:00]}  cxd5 {[%clk 0:02:59]} 5. Nc3 {[%clk 0:03:01]}  Nc6 {[%clk 0:02:59]} 6. Bf4 {[%clk 0:03:01]}  a6 {[%clk 0:02:59]} 7. Rc1 {[%clk 0:03:01]}  Bf5 {[%clk 0:02:58]} 8. e3 {[%clk 0:03:02]}  Rc8 {[%clk 0:02:57]} 9. Be2 {[%clk 0:03:02]}  e6 {[%clk 0:02:54]} 10. O-O {[%clk 0:03:02]}  Bd6 {[%clk 0:02:50]} 11. Bxd6 {[%clk 0:03:01]}  Qxd6 {[%clk 0:02:50]} 12. Qb3 {[%clk 0:03:02]}  b5 {[%clk 0:02:44]} 13. a4 {[%clk 0:02:56]}  O-O {[%clk 0:02:07]} 14. axb5 {[%clk 0:02:55]}  axb5 {[%clk 0:02:06]} 15. Nxb5 {[%clk 0:02:40]}  Qb8 {[%clk 0:02:04]} 16. Qa3 {[%clk 0:02:35]}  Ne4 {[%clk 0:01:59]} 17. Bd3 {[%clk 0:01:57]}  Bg4 {[%clk 0:01:44]} 18. Rc2 {[%clk 0:01:40]}  Bxf3 {[%clk 0:01:00]} 19. gxf3 {[%clk 0:01:41]}  Ng5 {[%clk 0:01:00]} 20. f4 {[%clk 0:01:40]}  Nf3+ {[%clk 0:01:00]} 21. Kg2 {[%clk 0:01:40]}  Nh4+ {[%clk 0:01:00]} 22. Kh1 {[%clk 0:01:40]}  Nd8 {[%clk 0:00:37]} 23. Qd6 {[%clk 0:01:09]}  Qxd6 {[%clk 0:00:22]} 24. Nxd6 {[%clk 0:01:10]}  Rxc2 {[%clk 0:00:18]} 25. Bxc2 {[%clk 0:01:11]}  Nc6 {[%clk 0:00:19]} 26. Rc1 {[%clk 0:00:54]}  Rb8 {[%clk 0:00:17]} 27. Bd1 {[%clk 0:00:23]}  Ne7 {[%clk 0:00:16]} 28. b3 {[%clk 0:00:15]}  g6 {[%clk 0:00:14]} 29. h3 {[%clk 0:00:13]}  Kf8 {[%clk 0:00:12]} 30. Kh2 {[%clk 0:00:13]}  Nhf5 {[%clk 0:00:12]} 31. Nxf5 {[%clk 0:00:13]}  Nxf5 {[%clk 0:00:13]} 32. Kg2 {[%clk 0:00:11]}  Nd6 {[%clk 0:00:13]} 33. Rc7 {[%clk 0:00:07]}  Ne4 {[%clk 0:00:12]} 34. Bc2 {[%clk 0:00:07]}  Nd2 {[%clk 0:00:12]} 35. Rc3 {[%clk 0:00:07]}  Ra8 {[%clk 0:00:11]} 36. f3 {[%clk 0:00:03]}  Ra2 {[%clk 0:00:10]} 37. Kg3 {[%clk 0:00:02]}  Rb2 {[%clk 0:00:07]} 38. h4 {[%clk 0:00:02]}  Kg7 {[%clk 0:00:07]} 39. h5 {[%clk 0:00:01]}  Nf1+ {[%clk 0:00:06]} 40. Kf2 {[%clk 0:00:01]}  Nd2 {[%clk 0:00:06]} 41. Ke2 {[%clk 0:00:02]}  Nxb3 {[%clk 0:00:06]} 0-1


[Site "https://www.chess.com"]

[Event "Titled Tuesday Blitz May 30 Late 2023"]
[White "Deac, Bogdan-Daniel"]
[Black "Bordi, Kevin"]
[WhiteFideId "1226380"]
[BlackFideId "621862"]
[WhiteElo "2649"]
[BlackElo "2771"]
[Result "1/2-1/2"]
[Round "06"]
[TimeControl "180+2"]
[Date "2023.05.31"]
[WhiteClock "0:00:03"]
[BlackClock "0:00:10"]

1. b3 {[%clk 0:03:00]}  e5 {[%clk 0:03:00]} 2. Bb2 {[%clk 0:03:01]}  Nc6 {[%clk 0:03:00]} 3. Nf3 {[%clk 0:03:01]}  d6 {[%clk 0:03:00]} 4. c4 {[%clk 0:03:01]}  g6 {[%clk 0:03:00]} 5. g3 {[%clk 0:03:00]}  Bg7 {[%clk 0:03:00]} 6. Bg2 {[%clk 0:03:00]}  f5 {[%clk 0:03:00]} 7. d3 {[%clk 0:03:00]}  Nf6 {[%clk 0:02:58]} 8. O-O {[%clk 0:03:00]}  O-O {[%clk 0:02:58]} 9. Nc3 {[%clk 0:03:01]}  Be6 {[%clk 0:02:54]} 10. e3 {[%clk 0:02:48]}  Qd7 {[%clk 0:02:54]} 11. d4 {[%clk 0:02:48]}  e4 {[%clk 0:02:22]} 12. d5 {[%clk 0:02:42]}  exf3 {[%clk 0:02:20]} 13. dxe6 {[%clk 0:02:40]}  Qxe6 {[%clk 0:02:13]} 14. Bxf3 {[%clk 0:02:40]}  Ne4 {[%clk 0:02:10]} 15. Rc1 {[%clk 0:02:38]}  Rae8 {[%clk 0:02:09]} 16. Bg2 {[%clk 0:02:23]}  h5 {[%clk 0:01:51]} 17. h4 {[%clk 0:02:14]}  Kh7 {[%clk 0:01:46]} 18. Na4 {[%clk 0:02:11]}  Bh6 {[%clk 0:01:38]} 19. Kh2 {[%clk 0:01:58]}  Ne5 {[%clk 0:01:31]} 20. Bxe5 {[%clk 0:01:57]}  Qxe5 {[%clk 0:01:31]} 21. Rc2 {[%clk 0:01:14]}  Bg7 {[%clk 0:00:53]} 22. Qd5 {[%clk 0:01:07]}  c6 {[%clk 0:00:46]} 23. Qxe5 {[%clk 0:01:07]}  Bxe5 {[%clk 0:00:46]} 24. Rd1 {[%clk 0:01:02]}  Rd8 {[%clk 0:00:38]} 25. Nb2 {[%clk 0:00:24]}  Bxb2 {[%clk 0:00:38]} 26. Rxb2 {[%clk 0:00:24]}  d5 {[%clk 0:00:39]} 27. cxd5 {[%clk 0:00:24]}  cxd5 {[%clk 0:00:37]} 28. Rc2 {[%clk 0:00:20]}  Rf7 {[%clk 0:00:37]} 29. Rd4 {[%clk 0:00:20]}  Rfd7 {[%clk 0:00:37]} 30. Bf1 {[%clk 0:00:16]}  a6 {[%clk 0:00:36]} 31. Kg2 {[%clk 0:00:15]}  Kg7 {[%clk 0:00:37]} 32. Bd3 {[%clk 0:00:15]}  Kf6 {[%clk 0:00:37]} 33. f3 {[%clk 0:00:15]}  Nd6 {[%clk 0:00:32]} 34. Rxd5 {[%clk 0:00:15]}  Ke6 {[%clk 0:00:32]} 35. Rd4 {[%clk 0:00:14]}  Ke7 {[%clk 0:00:33]} 36. Kf2 {[%clk 0:00:13]}  Nf7 {[%clk 0:00:32]} 37. Rxd7+ {[%clk 0:00:12]}  Rxd7 {[%clk 0:00:33]} 38. Be2 {[%clk 0:00:11]}  Ne5 {[%clk 0:00:34]} 39. a4 {[%clk 0:00:10]}  Nc6 {[%clk 0:00:32]} 40. Rc4 {[%clk 0:00:07]}  Rd2 {[%clk 0:00:32]} 41. Rc3 {[%clk 0:00:07]}  Rb2 {[%clk 0:00:32]} 42. Ke1 {[%clk 0:00:07]}  Na5 {[%clk 0:00:31]} 43. Bd1 {[%clk 0:00:05]}  Rg2 {[%clk 0:00:29]} 44. b4 {[%clk 0:00:04]}  Nc6 {[%clk 0:00:29]} 45. b5 {[%clk 0:00:05]}  axb5 {[%clk 0:00:27]} 46. axb5 {[%clk 0:00:06]}  Ne5 {[%clk 0:00:23]} 47. f4 {[%clk 0:00:04]}  Nd7 {[%clk 0:00:23]} 48. Bf3 {[%clk 0:00:04]}  Rb2 {[%clk 0:00:19]} 49. Bxb7 {[%clk 0:00:03]}  Rxb5 {[%clk 0:00:20]} 50. Bf3 {[%clk 0:00:03]}  Nf6 {[%clk 0:00:18]} 51. Rc7+ {[%clk 0:00:03]}  Kf8 {[%clk 0:00:17]} 52. Rc6 {[%clk 0:00:03]}  Ke7 {[%clk 0:00:18]} 53. Rc7+ {[%clk 0:00:03]}  Kf8 {[%clk 0:00:18]} 54. Kf2 {[%clk 0:00:03]}  Rb2+ {[%clk 0:00:18]} 55. Kf1 {[%clk 0:00:04]}  Rb3 {[%clk 0:00:18]} 56. Rc6 {[%clk 0:00:03]}  Ke7 {[%clk 0:00:18]} 57. Ke2 {[%clk 0:00:02]}  Rb2+ {[%clk 0:00:17]} 58. Kd3 {[%clk 0:00:03]}  Rf2 {[%clk 0:00:17]} 59. Be2 {[%clk 0:00:03]}  Rg2 {[%clk 0:00:17]} 60. Rc7+ {[%clk 0:00:04]}  Kf8 {[%clk 0:00:17]} 61. Bd1 {[%clk 0:00:04]}  Rxg3 {[%clk 0:00:16]} 62. Kd4 {[%clk 0:00:05]}  Ng4 {[%clk 0:00:16]} 63. Bb3 {[%clk 0:00:02]}  Rxe3 {[%clk 0:00:14]} 64. Bd5 {[%clk 0:00:02]}  Re7 {[%clk 0:00:11]} 65. Rc8+ {[%clk 0:00:02]}  Kg7 {[%clk 0:00:12]} 66. Rg8+ {[%clk 0:00:02]}  Kf6 {[%clk 0:00:12]} 67. Rf8+ {[%clk 0:00:02]}  Kg7 {[%clk 0:00:13]} 68. Rg8+ {[%clk 0:00:03]}  Kh6 {[%clk 0:00:13]} 69. Rh8+ {[%clk 0:00:03]}  Rh7 {[%clk 0:00:11]} 70. Rf8 {[%clk 0:00:03]}  Re7 {[%clk 0:00:10]} 71. Rh8+ {[%clk 0:00:03]}  Kg7 {[%clk 0:00:10]} 72. Rg8+ {[%clk 0:00:03]} 1/2-1/2


[Site "https://www.chess.com"]

[Event "Titled Tuesday Blitz May 30 Late 2023"]
[White "Hambleton, Aman"]
[Black "Rasulov, Vugar"]
[WhiteFideId "2606577"]
[BlackFideId "13402390"]
[WhiteElo "2511"]
[BlackElo "2509"]
[Result "1-0"]
[Round "06"]
[TimeControl "180+2"]
[Date "2023.05.31"]
[WhiteClock "0:00:04"]
[BlackClock "0:00:55"]

1. c4 {[%clk 0:03:00]}  Nf6 {[%clk 0:02:59]} 2. d4 {[%clk 0:02:56]}  e6 {[%clk 0:03:00]} 3. Nc3 {[%clk 0:02:53]}  Bb4 {[%clk 0:02:59]} 4. Qc2 {[%clk 0:02:50]}  O-O {[%clk 0:02:57]} 5. Nf3 {[%clk 0:02:49]}  d5 {[%clk 0:02:56]} 6. cxd5 {[%clk 0:02:37]}  exd5 {[%clk 0:02:55]} 7. Bg5 {[%clk 0:02:33]}  h6 {[%clk 0:02:50]} 8. Bh4 {[%clk 0:02:25]}  c6 {[%clk 0:02:45]} 9. e3 {[%clk 0:02:19]}  Nbd7 {[%clk 0:02:42]} 10. Bd3 {[%clk 0:02:04]}  Re8 {[%clk 0:02:40]} 11. g4 {[%clk 0:01:23]}  Qa5 {[%clk 0:02:29]} 12. g5 {[%clk 0:01:15]}  hxg5 {[%clk 0:02:29]} 13. Nxg5 {[%clk 0:01:11]}  c5 {[%clk 0:02:21]} 14. O-O-O {[%clk 0:01:00]}  c4 {[%clk 0:02:02]} 15. Bh7+ {[%clk 0:00:27]}  Kf8 {[%clk 0:02:02]} 16. Rhg1 {[%clk 0:00:27]}  Bxc3 {[%clk 0:01:50]} 17. Nxf7 {[%clk 0:00:10]}  Bxb2+ {[%clk 0:01:47]} 18. Kxb2 {[%clk 0:00:07]}  Nb6 {[%clk 0:01:24]} 19. Rxg7 {[%clk 0:00:04]}  Kxg7 {[%clk 0:00:59]} 20. Qg6+ {[%clk 0:00:03]}  Kf8 {[%clk 0:01:00]} 21. Qh6+ {[%clk 0:00:03]}  Ke7 {[%clk 0:00:54]} 22. Qxf6+ {[%clk 0:00:03]}  Kd7 {[%clk 0:00:55]} 23. Qd6# {[%clk 0:00:04]} 1-0


[Site "https://www.chess.com"]

[Event "Titled Tuesday Blitz May 30 Late 2023"]
[White "Schmakel, Sam"]
[Black "Kevlishvili, Robby"]
[WhiteFideId "2039311"]
[BlackFideId "1040634"]
[WhiteElo "2356"]
[BlackElo "2572"]
[Result "0-1"]
[Round "06"]
[TimeControl "180+2"]
[Date "2023.05.31"]
[WhiteClock "0:00:06"]
[BlackClock "0:01:14"]

1. d4 {[%clk 0:03:00]}  Nf6 {[%clk 0:02:58]} 2. c4 {[%clk 0:03:00]}  g6 {[%clk 0:02:59]} 3. g3 {[%clk 0:02:59]}  Bg7 {[%clk 0:02:58]} 4. Bg2 {[%clk 0:03:00]}  O-O {[%clk 0:02:59]} 5. Nc3 {[%clk 0:03:00]}  d6 {[%clk 0:02:59]} 6. Nf3 {[%clk 0:03:00]}  Nc6 {[%clk 0:02:59]} 7. O-O {[%clk 0:03:00]}  a6 {[%clk 0:02:57]} 8. Bf4 {[%clk 0:03:00]}  Bg4 {[%clk 0:02:51]} 9. d5 {[%clk 0:02:51]}  Na5 {[%clk 0:02:49]} 10. Qd3 {[%clk 0:02:48]}  c5 {[%clk 0:02:44]} 11. h3 {[%clk 0:02:33]}  Bxf3 {[%clk 0:02:41]} 12. Bxf3 {[%clk 0:02:34]}  Nd7 {[%clk 0:02:40]} 13. b3 {[%clk 0:02:25]}  b5 {[%clk 0:02:34]} 14. Rab1 {[%clk 0:02:19]}  bxc4 {[%clk 0:02:31]} 15. bxc4 {[%clk 0:02:20]}  Ne5 {[%clk 0:02:31]} 16. Bxe5 {[%clk 0:02:18]}  Bxe5 {[%clk 0:02:32]} 17. e3 {[%clk 0:02:11]}  Rb8 {[%clk 0:02:32]} 18. Rxb8 {[%clk 0:01:55]}  Qxb8 {[%clk 0:02:31]} 19. Rb1 {[%clk 0:01:56]}  Qc7 {[%clk 0:02:30]} 20. Ne2 {[%clk 0:01:51]}  Rb8 {[%clk 0:02:29]} 21. Rxb8+ {[%clk 0:01:29]}  Qxb8 {[%clk 0:02:30]} 22. Qa3 {[%clk 0:01:30]}  Nxc4 {[%clk 0:02:27]} 23. Qxa6 {[%clk 0:01:30]}  Qb1+ {[%clk 0:02:13]} 24. Kh2 {[%clk 0:01:30]}  Nd2 {[%clk 0:02:14]} 25. Bg2 {[%clk 0:01:30]}  Nf1+ {[%clk 0:02:14]} 26. Bxf1 {[%clk 0:01:25]}  Qxf1 {[%clk 0:02:15]} 27. f4 {[%clk 0:01:26]}  Qf2+ {[%clk 0:02:03]} 28. Kh1 {[%clk 0:01:26]}  Bf6 {[%clk 0:01:56]} 29. Qd3 {[%clk 0:01:26]}  Qf3+ {[%clk 0:01:51]} 30. Kg1 {[%clk 0:01:21]}  Bd4 {[%clk 0:01:51]} 31. Nxd4 {[%clk 0:01:16]}  cxd4 {[%clk 0:01:49]} 32. Qxd4 {[%clk 0:01:13]}  Qxg3+ {[%clk 0:01:49]} 33. Kf1 {[%clk 0:01:13]}  Qxh3+ {[%clk 0:01:50]} 34. Ke1 {[%clk 0:01:05]}  Qh1+ {[%clk 0:01:46]} 35. Kf2 {[%clk 0:01:05]}  Qh2+ {[%clk 0:01:47]} 36. Kf3 {[%clk 0:01:05]}  Qxa2 {[%clk 0:01:47]} 37. e4 {[%clk 0:01:02]}  Qb3+ {[%clk 0:01:46]} 38. Kf2 {[%clk 0:01:02]}  h5 {[%clk 0:01:43]} 39. e5 {[%clk 0:01:03]}  h4 {[%clk 0:01:42]} 40. exd6 {[%clk 0:00:36]}  Qg3+ {[%clk 0:01:41]} 41. Ke2 {[%clk 0:00:36]}  exd6 {[%clk 0:01:42]} 42. Qf6 {[%clk 0:00:37]}  h3 {[%clk 0:01:40]} 43. f5 {[%clk 0:00:27]}  h2 {[%clk 0:01:35]} 44. Qd8+ {[%clk 0:00:24]}  Kg7 {[%clk 0:01:32]} 45. f6+ {[%clk 0:00:22]}  Kh7 {[%clk 0:01:32]} 46. Qf8 {[%clk 0:00:19]}  Qe5+ {[%clk 0:01:32]} 47. Kf2 {[%clk 0:00:19]}  Qxf6+ {[%clk 0:01:31]} 48. Kg2 {[%clk 0:00:20]}  h1=Q+ {[%clk 0:01:19]} 49. Kxh1 {[%clk 0:00:20]}  Qf3+ {[%clk 0:01:19]} 50. Kg1 {[%clk 0:00:19]}  Qxd5 {[%clk 0:01:20]} 51. Kf2 {[%clk 0:00:17]}  Qf5+ {[%clk 0:01:20]} 52. Ke2 {[%clk 0:00:18]}  d5 {[%clk 0:01:21]} 53. Ke3 {[%clk 0:00:17]}  g5 {[%clk 0:01:21]} 54. Qd8 {[%clk 0:00:12]}  g4 {[%clk 0:01:18]} 55. Qh4+ {[%clk 0:00:11]}  Kg7 {[%clk 0:01:18]} 56. Qd8 {[%clk 0:00:06]}  g3 {[%clk 0:01:15]} 57. Qh4 {[%clk 0:00:06]}  Qe4+ {[%clk 0:01:14]} 0-1


[Site "https://www.chess.com"]

[Event "Titled Tuesday Blitz May 30 Late 2023"]
[White "Babazada, Khazar"]
[Black "Halkias, Stelios"]
[WhiteFideId "13413554"]
[BlackFideId "4201809"]
[WhiteElo "2351"]
[BlackElo "2451"]
[Result "1/2-1/2"]
[Round "06"]
[TimeControl "180+2"]
[Date "2023.05.31"]
[WhiteClock "0:00:09"]
[BlackClock "0:00:03"]

1. e4 {[%clk 0:03:00]}  e5 {[%clk 0:02:57]} 2. Nf3 {[%clk 0:03:01]}  d6 {[%clk 0:02:58]} 3. d4 {[%clk 0:03:01]}  exd4 {[%clk 0:02:58]} 4. Nxd4 {[%clk 0:03:01]}  Nf6 {[%clk 0:02:59]} 5. Nc3 {[%clk 0:03:01]}  Be7 {[%clk 0:02:59]} 6. g4 {[%clk 0:03:01]}  Nc6 {[%clk 0:02:57]} 7. g5 {[%clk 0:02:59]}  Nd7 {[%clk 0:02:56]} 8. Nf5 {[%clk 0:02:58]}  O-O {[%clk 0:02:56]} 9. h4 {[%clk 0:02:58]}  Nc5 {[%clk 0:02:55]} 10. Qf3 {[%clk 0:02:54]}  Bxf5 {[%clk 0:02:50]} 11. exf5 {[%clk 0:02:54]}  Nd4 {[%clk 0:02:50]} 12. Qd1 {[%clk 0:02:48]}  Nxf5 {[%clk 0:02:47]} 13. Be2 {[%clk 0:02:40]}  Re8 {[%clk 0:02:43]} 14. Nd5 {[%clk 0:02:25]}  c6 {[%clk 0:02:41]} 15. Ne3 {[%clk 0:02:25]}  Nxe3 {[%clk 0:02:38]} 16. Bxe3 {[%clk 0:02:26]}  d5 {[%clk 0:02:39]} 17. Qd4 {[%clk 0:02:19]}  Ne4 {[%clk 0:02:33]} 18. Qd3 {[%clk 0:02:17]}  Bc5 {[%clk 0:02:30]} 19. O-O-O {[%clk 0:02:06]}  Bxe3+ {[%clk 0:02:00]} 20. Qxe3 {[%clk 0:02:07]}  Qb6 {[%clk 0:02:00]} 21. Rhf1 {[%clk 0:01:49]}  Qxe3+ {[%clk 0:01:56]} 22. fxe3 {[%clk 0:01:50]}  Ng3 {[%clk 0:01:56]} 23. Rf2 {[%clk 0:01:47]}  Rxe3 {[%clk 0:01:56]} 24. Bd3 {[%clk 0:01:47]}  Rae8 {[%clk 0:01:53]} 25. c4 {[%clk 0:01:44]}  Ne4 {[%clk 0:01:51]} 26. Bxe4 {[%clk 0:01:41]}  dxe4 {[%clk 0:01:42]} 27. Rd7 {[%clk 0:01:40]}  Rf3 {[%clk 0:01:43]} 28. Re2 {[%clk 0:01:38]}  Rf4 {[%clk 0:01:36]} 29. h5 {[%clk 0:01:35]}  b5 {[%clk 0:00:54]} 30. cxb5 {[%clk 0:01:29]}  cxb5 {[%clk 0:00:54]} 31. Rxa7 {[%clk 0:01:30]}  h6 {[%clk 0:00:54]} 32. gxh6 {[%clk 0:01:20]}  gxh6 {[%clk 0:00:54]} 33. Kd2 {[%clk 0:01:21]}  Rf3 {[%clk 0:00:52]} 34. Rd7 {[%clk 0:01:03]}  Rf5 {[%clk 0:00:47]} 35. Rd4 {[%clk 0:01:00]}  Rxh5 {[%clk 0:00:37]} 36. Rdxe4 {[%clk 0:00:57]}  Rxe4 {[%clk 0:00:36]} 37. Rxe4 {[%clk 0:00:58]}  Rg5 {[%clk 0:00:36]} 38. Kc3 {[%clk 0:00:54]}  h5 {[%clk 0:00:34]} 39. Re1 {[%clk 0:00:45]}  Kg7 {[%clk 0:00:31]} 40. Kb4 {[%clk 0:00:42]}  Kg6 {[%clk 0:00:29]} 41. b3 {[%clk 0:00:43]}  h4 {[%clk 0:00:29]} 42. a4 {[%clk 0:00:41]}  bxa4 {[%clk 0:00:28]} 43. bxa4 {[%clk 0:00:42]}  Rg2 {[%clk 0:00:27]} 44. a5 {[%clk 0:00:34]}  Ra2 {[%clk 0:00:18]} 45. Rg1+ {[%clk 0:00:15]}  Kh5 {[%clk 0:00:16]} 46. Rf1 {[%clk 0:00:15]}  Kg6 {[%clk 0:00:16]} 47. Rg1+ {[%clk 0:00:14]}  Kh6 {[%clk 0:00:15]} 48. Rf1 {[%clk 0:00:15]}  Kg7 {[%clk 0:00:10]} 49. Rh1 {[%clk 0:00:14]}  f5 {[%clk 0:00:06]} 50. Rxh4 {[%clk 0:00:12]}  Kf6 {[%clk 0:00:07]} 51. Kb5 {[%clk 0:00:11]}  Ke5 {[%clk 0:00:04]} 52. Ra4 {[%clk 0:00:10]}  Rxa4 {[%clk 0:00:04]} 53. Kxa4 {[%clk 0:00:11]}  f4 {[%clk 0:00:04]} 54. a6 {[%clk 0:00:11]}  f3 {[%clk 0:00:05]} 55. a7 {[%clk 0:00:12]}  f2 {[%clk 0:00:05]} 56. a8=Q {[%clk 0:00:13]}  f1=Q {[%clk 0:00:06]} 57. Qe8+ {[%clk 0:00:14]}  Kd4 {[%clk 0:00:06]} 58. Qd8+ {[%clk 0:00:12]}  Kc3 {[%clk 0:00:05]} 59. Qa5+ {[%clk 0:00:11]}  Kc2 {[%clk 0:00:04]} 60. Qc5+ {[%clk 0:00:10]}  Kb2 {[%clk 0:00:04]} 61. Qa3+ {[%clk 0:00:10]}  Kc2 {[%clk 0:00:04]} 62. Qa2+ {[%clk 0:00:09]}  Kd3 {[%clk 0:00:04]} 63. Qb3+ {[%clk 0:00:08]}  Ke2 {[%clk 0:00:04]} 64. Qc4+ {[%clk 0:00:08]}  Kf2 {[%clk 0:00:03]} 65. Qf4+ {[%clk 0:00:08]}  Ke2 {[%clk 0:00:03]} 66. Qg4+ {[%clk 0:00:09]}  Qf3 {[%clk 0:00:03]} 67. Qxf3+ {[%clk 0:00:09]}  Kxf3 {[%clk 0:00:03]} 1/2-1/2


[Site "https://www.chess.com"]

[Event "Titled Tuesday Blitz May 30 Late 2023"]
[White "Demidov, Mikhail"]
[Black "Rastbod, Ali"]
[WhiteFideId "4197143"]
[BlackFideId "12567477"]
[WhiteElo "2500"]
[BlackElo "2274"]
[Result "1-0"]
[Round "06"]
[TimeControl "180+2"]
[Date "2023.05.31"]
[WhiteClock "0:00:12"]
[BlackClock "0:00:04"]

1. Nf3 {[%clk 0:02:57]}  d5 {[%clk 0:02:57]} 2. g3 {[%clk 0:02:57]}  c6 {[%clk 0:02:57]} 3. Bg2 {[%clk 0:02:57]}  Bg4 {[%clk 0:02:58]} 4. Ne5 {[%clk 0:02:58]}  Bf5 {[%clk 0:02:58]} 5. O-O {[%clk 0:02:58]}  Nd7 {[%clk 0:02:58]} 6. d4 {[%clk 0:02:58]}  e6 {[%clk 0:02:57]} 7. c4 {[%clk 0:02:58]}  Bd6 {[%clk 0:02:52]} 8. Bf4 {[%clk 0:02:57]}  Qc7 {[%clk 0:02:48]} 9. cxd5 {[%clk 0:02:34]}  exd5 {[%clk 0:02:42]} 10. Qb3 {[%clk 0:02:34]}  Qb6 {[%clk 0:02:07]} 11. Qc3 {[%clk 0:02:12]}  Nxe5 {[%clk 0:01:59]} 12. Bxe5 {[%clk 0:02:06]}  Bxe5 {[%clk 0:01:57]} 13. dxe5 {[%clk 0:02:04]}  Ne7 {[%clk 0:01:53]} 14. Nd2 {[%clk 0:02:04]}  O-O {[%clk 0:01:46]} 15. Nb3 {[%clk 0:01:54]}  Ng6 {[%clk 0:01:40]} 16. Kh1 {[%clk 0:01:22]}  Rae8 {[%clk 0:01:34]} 17. Nd4 {[%clk 0:01:13]}  Be4 {[%clk 0:01:04]} 18. f3 {[%clk 0:01:10]}  c5 {[%clk 0:01:04]} 19. Nb3 {[%clk 0:01:08]}  Bf5 {[%clk 0:00:54]} 20. f4 {[%clk 0:01:04]}  c4 {[%clk 0:00:31]} 21. Nd4 {[%clk 0:01:02]}  Ne7 {[%clk 0:00:32]} 22. Rad1 {[%clk 0:00:53]}  g6 {[%clk 0:00:24]} 23. h3 {[%clk 0:00:48]}  Rd8 {[%clk 0:00:18]} 24. g4 {[%clk 0:00:47]}  Be4 {[%clk 0:00:19]} 25. f5 {[%clk 0:00:40]}  Nc6 {[%clk 0:00:13]} 26. Nxc6 {[%clk 0:00:15]}  Qxc6 {[%clk 0:00:13]} 27. Qe3 {[%clk 0:00:15]}  Bxg2+ {[%clk 0:00:09]} 28. Kxg2 {[%clk 0:00:15]}  d4+ {[%clk 0:00:09]} 29. Qf3 {[%clk 0:00:15]}  Qb5 {[%clk 0:00:10]} 30. Qf4 {[%clk 0:00:14]}  Rfe8 {[%clk 0:00:09]} 31. f6 {[%clk 0:00:14]}  Qxe5 {[%clk 0:00:08]} 32. Qh6 {[%clk 0:00:14]}  Qe4+ {[%clk 0:00:07]} 33. Rf3 {[%clk 0:00:12]}  Qxe2+ {[%clk 0:00:07]} 34. Rf2 {[%clk 0:00:11]}  Qe4+ {[%clk 0:00:07]} 35. Kg1 {[%clk 0:00:11]}  Qe1+ {[%clk 0:00:03]} 36. Rxe1 {[%clk 0:00:11]}  Rxe1+ {[%clk 0:00:04]} 37. Kg2 {[%clk 0:00:12]} 1-0


[Site "https://www.chess.com"]

[Event "Titled Tuesday Blitz May 30 Late 2023"]
[White "Hajiyev, Kanan"]
[Black "Kravtsiv, Martyn"]
[WhiteFideId "13404148"]
[BlackFideId "14113147"]
[WhiteElo "2103"]
[BlackElo "2695"]
[Result "1-0"]
[Round "06"]
[TimeControl "180+2"]
[Date "2023.05.31"]
[WhiteClock "0:00:25"]
[BlackClock "0:00:55"]

1. d4 {[%clk 0:03:00]}  d5 {[%clk 0:02:59]} 2. Nf3 {[%clk 0:03:01]}  Nf6 {[%clk 0:02:59]} 3. c4 {[%clk 0:03:02]}  e6 {[%clk 0:02:58]} 4. cxd5 {[%clk 0:03:03]}  exd5 {[%clk 0:02:58]} 5. Nc3 {[%clk 0:03:03]}  c6 {[%clk 0:02:58]} 6. Qc2 {[%clk 0:03:00]}  g6 {[%clk 0:02:56]} 7. Bg5 {[%clk 0:03:00]}  h6 {[%clk 0:02:53]} 8. Bxf6 {[%clk 0:02:57]}  Qxf6 {[%clk 0:02:54]} 9. Nxd5 {[%clk 0:02:57]}  Qd6 {[%clk 0:02:43]} 10. Nc3 {[%clk 0:02:56]}  Bg7 {[%clk 0:02:43]} 11. e3 {[%clk 0:02:56]}  O-O {[%clk 0:02:44]} 12. Bc4 {[%clk 0:02:54]}  Bg4 {[%clk 0:02:43]} 13. h3 {[%clk 0:02:39]}  Bxf3 {[%clk 0:02:42]} 14. gxf3 {[%clk 0:02:39]}  Nd7 {[%clk 0:02:41]} 15. O-O-O {[%clk 0:02:35]}  b5 {[%clk 0:02:39]} 16. Bd3 {[%clk 0:02:24]}  f5 {[%clk 0:02:38]} 17. f4 {[%clk 0:02:22]}  a5 {[%clk 0:02:31]} 18. h4 {[%clk 0:02:08]}  h5 {[%clk 0:02:29]} 19. Rhg1 {[%clk 0:02:03]}  Rf6 {[%clk 0:02:14]} 20. Kb1 {[%clk 0:01:56]}  Kh7 {[%clk 0:02:08]} 21. e4 {[%clk 0:01:40]}  Qxf4 {[%clk 0:02:04]} 22. exf5 {[%clk 0:01:32]}  gxf5 {[%clk 0:01:35]} 23. Rg5 {[%clk 0:01:30]}  Qxh4 {[%clk 0:01:34]} 24. Bxf5+ {[%clk 0:01:21]}  Kh8 {[%clk 0:01:32]} 25. Ne4 {[%clk 0:00:35]}  Bh6 {[%clk 0:01:03]} 26. Nxf6 {[%clk 0:00:28]}  Qxg5 {[%clk 0:01:02]} 27. Nxd7 {[%clk 0:00:28]}  Rd8 {[%clk 0:00:57]} 28. Ne5 {[%clk 0:00:28]}  Rf8 {[%clk 0:00:56]} 29. Ng6+ {[%clk 0:00:25]}  Kg7 {[%clk 0:00:55]} 30. Nxf8 {[%clk 0:00:25]} 1-0


[Site "https://www.chess.com"]

[Event "Titled Tuesday Blitz May 30 Late 2023"]
[White "Haydon, David L"]
[Black "Grigoriants, Sergey"]
[WhiteFideId "415405"]
[BlackFideId "4130804"]
[WhiteElo "2326"]
[BlackElo "2502"]
[Result "0-1"]
[Round "06"]
[TimeControl "180+2"]
[Date "2023.05.31"]
[WhiteClock "0:01:10"]
[BlackClock "0:01:00"]

1. e4 {[%clk 0:03:00]}  c5 {[%clk 0:02:56]} 2. Nf3 {[%clk 0:03:00]}  Nc6 {[%clk 0:02:55]} 3. d4 {[%clk 0:03:00]}  cxd4 {[%clk 0:02:55]} 4. Nxd4 {[%clk 0:03:00]}  e6 {[%clk 0:02:56]} 5. Nc3 {[%clk 0:02:57]}  a6 {[%clk 0:02:48]} 6. Be3 {[%clk 0:02:51]}  Nf6 {[%clk 0:02:37]} 7. f3 {[%clk 0:02:39]}  d5 {[%clk 0:02:29]} 8. exd5 {[%clk 0:02:37]}  Nxd5 {[%clk 0:02:19]} 9. Nxd5 {[%clk 0:02:35]}  Qxd5 {[%clk 0:02:18]} 10. Nxc6 {[%clk 0:02:35]}  Qxc6 {[%clk 0:02:18]} 11. Qd2 {[%clk 0:02:30]}  Be7 {[%clk 0:02:04]} 12. Bd3 {[%clk 0:02:29]}  e5 {[%clk 0:01:57]} 13. Be4 {[%clk 0:02:26]}  Qc7 {[%clk 0:01:56]} 14. O-O-O {[%clk 0:02:05]}  Be6 {[%clk 0:01:30]} 15. Kb1 {[%clk 0:02:04]}  O-O {[%clk 0:01:29]} 16. g4 {[%clk 0:02:01]}  Rac8 {[%clk 0:01:24]} 17. Ka1 {[%clk 0:01:47]}  b5 {[%clk 0:01:24]} 18. c3 {[%clk 0:01:43]}  a5 {[%clk 0:01:24]} 19. Qd3 {[%clk 0:01:37]}  Bc4 {[%clk 0:01:15]} 20. Bxh7+ {[%clk 0:01:29]}  Kh8 {[%clk 0:01:15]} 21. Qf5 {[%clk 0:01:29]}  g6 {[%clk 0:01:05]} 22. Bxg6 {[%clk 0:01:22]}  fxg6 {[%clk 0:01:06]} 23. Qxg6 {[%clk 0:01:22]}  Qc6 {[%clk 0:01:04]} 24. Qh5+ {[%clk 0:01:16]}  Kg7 {[%clk 0:01:04]} 25. Bh6+ {[%clk 0:01:13]}  Qxh6 {[%clk 0:01:02]} 26. Qxe5+ {[%clk 0:01:10]}  Qf6 {[%clk 0:01:00]} 0-1


[Site "https://www.chess.com"]